bitfinex/quotes_ETHUSD_20241129
["timestamp","ask_amount","ask_price","bid_price","bid_amount"]
[1732875823711,3.0757,3574.1,3573.5,2.98478915]
[1732875824005,2.7979,3574.1,3573.7,0.2]
[1732875824167,2.79789,3574.2,3573.7,0.2]
[1732875824372,2.79789,3574.2,3573.8,0.08620993]
[1732875824778,0.2778,3574.5,3573.7,2.99819]
[1732875824779,2.79773,3574.4,3573.7,2.99819]
[1732875826806,0.26134122,3574.4,3574.1,0.1]
[1732875827006,0.26134122,3574.4,3574.2,0.08600521]
[1732875827408,2.7976,3574.5,3574.2,0.08600521]
[1732875830021,2.79723,3575.0,3574.2,0.08600521]
[1732875830228,2.94096236,3576.2,3574.3,1.01]
[1732875830229,0.26137594,3574.9,3574.3,1.01]
[1732875830384,3.07486,3575.2,3574.5,2.79757]
[1732875830385,0.26137594,3575.0,3574.5,2.79757]
[1732875830585,0.26137594,3575.1,3574.5,2.79757]
[1732875830788,3.05850594,3575.1,3574.6,0.08559352]
[1732875830986,0.26137594,3575.0,3574.6,0.08559352]
[1732875831382,2.7969,3575.4,3574.9,0.7953]
[1732875831619,0.26124712,3575.3,3574.9,0.7953]
[1732875831824,0.26125293,3575.3,3575.0,0.08538889]
[1732875832936,2.79697,3575.3,3575.0,0.08538889]
[1732875833087,3.38247329,3575.3,3575.0,0.08538889]
[1732875833489,2.79704,3575.2,3575.0,0.08538889]
[1732875834994,2.79706,3575.2,3575.0,0.08538889]
[1732875835388,0.2778,3575.2,3574.3,3.1]
[1732875835623,2.79712,3575.1,3574.5,0.1]
[1732875835872,2.79736,3574.8,3574.2,3.79716]
[1732875836038,2.79736,3574.8,3574.2,3.69716]
[1732875836190,0.307492,3575.0,3574.2,0.8994]
[1732875836392,2.79748,3574.7,3574.2,0.9994]
[1732875836588,2.79748,3574.7,3574.2,0.8994]
[1732875836827,2.79751,3574.6,3574.2,0.9994]
[1732875837048,2.79751,3574.6,3574.4,0.1]
[1732875837200,2.79751,3574.6,3574.2,0.9994]
[1732875837404,2.79761,3574.5,3574.2,0.8994]
[1732875837823,2.79761,3574.5,3574.4,0.1]
[1732875839314,2.79761,3574.5,3574.4,0.1851682]
[1732875841408,2.79743,3574.7,3574.4,0.1851682]
[1732875842853,2.79759,3574.5,3574.4,0.0851682]
[1732875843239,2.79811,3573.9,3573.5,0.1]
[1732875843561,2.79822,3573.7,3573.6,0.08540872]
[1732875843761,3.07656,3574.1,3573.9,0.1]
[1732875843913,2.79804,3574.0,3573.9,0.1]
[1732875844114,2.79804,3574.0,3573.9,0.1852552]
[1732875845260,2.79804,3574.0,3573.9,0.1]
[1732875845552,2.79804,3574.0,3573.9,0.08523691]
[1732875845724,2.79804,3574.0,3573.9,0.18523691]
[1732875845924,2.79816,3573.8,3573.5,0.1]
[1732875846129,2.79822,3573.7,3573.6,0.08539044]
[1732875847516,2.79822,3573.7,3573.6,0.18539044]
[1732875849124,2.79806,3573.9,3573.6,0.18539044]
[1732875850055,2.79811,3573.9,3573.6,0.28539044]
[1732875850254,2.79819,3573.8,3573.6,0.18539044]
[1732875850432,2.79819,3573.8,3573.6,0.28539044]
[1732875851065,2.79822,3573.7,3573.6,0.08539044]
[1732875851357,2.79834,3573.6,3573.4,0.7971]
[1732875851652,2.79834,3573.6,3573.5,0.08586628]
[1732875851853,2.79834,3573.6,3573.5,0.18586628]
[1732875852817,2.79834,3573.6,3573.5,0.08586628]
[1732875853160,2.79834,3573.6,3573.1,0.8973]
[1732875853362,2.79845,3573.5,3573.1,0.8973]
[1732875853566,2.79854,3573.3,3573.1,0.7973]
[1732875853778,2.79861,3573.2,3572.9,0.1]
[1732875854270,2.79861,3573.2,3573.0,0.08612226]
[1732875854771,2.79861,3573.2,3573.0,0.18612226]
[1732875855177,2.79861,3573.2,3573.0,0.08612226]
[1732875856573,2.79854,3573.3,3573.2,0.1]
[1732875856875,2.79863,3573.2,3573.0,0.08612226]
[1732875857045,2.79863,3573.2,3572.9,0.2]
[1732875857561,2.79854,3573.3,3572.9,0.2]
[1732875857732,2.79854,3573.3,3573.2,0.1]
[1732875859695,2.7985,3573.4,3573.2,0.1]
[1732875860413,2.79832,3573.6,3573.4,0.8941]
[1732875862239,2.79815,3573.8,3573.4,0.8941]
[1732875862515,2.79816,3573.8,3573.4,0.8941]
[1732875863099,2.79822,3573.7,3573.4,0.8941]
[1732875863303,2.79837,3573.5,3573.4,0.8941]
[1732875863613,2.7983,3573.6,3573.4,0.8941]
[1732875864704,2.7983,3573.6,3573.4,0.9941]
[1732875865102,2.79822,3573.7,3573.4,0.1]
[1732875865302,2.79837,3573.5,3573.4,0.1]
[1732875869216,2.79837,3573.5,3573.4,0.18589298]
[1732875869417,2.79837,3573.5,3573.4,0.08589298]
[1732875869622,3.07697,3573.5,3573.4,0.08589298]
[1732875869852,2.79845,3573.4,3573.0,0.9012]
[1732875870140,2.79856,3573.3,3573.2,0.1]
[1732875870288,2.79856,3573.3,3573.0,0.9012]
[1732875870688,2.79869,3573.1,3573.0,0.9012]
[1732875870891,2.79869,3573.1,3573.0,0.1]
[1732875872134,2.7986,3573.3,3573.0,0.1]
[1732875875125,2.79838,3573.5,3573.0,0.2]
[1732875875439,2.79854,3573.3,3573.0,0.2]
[1732875876197,2.79838,3573.5,3573.0,0.2]
[1732875876438,0.26185684,3573.4,3573.0,0.2]
[1732875876587,2.79854,3573.3,3573.0,0.2]
[1732875876792,2.79861,3573.2,3573.0,0.2]
[1732875878191,2.79861,3573.2,3573.0,1.6898229]
[1732875878529,2.79846,3573.4,3573.0,1.6898229]
[1732875878737,0.26185688,3573.3,3573.0,1.6898229]
[1732875879029,2.79846,3573.4,3573.0,1.6898229]
[1732875879205,0.26185049,3573.3,3573.0,1.6898229]
[1732875879405,2.79846,3573.4,3573.0,1.6898229]
[1732875879605,0.26185864,3573.3,3573.0,1.6898229]
[1732875879794,2.79846,3573.4,3573.0,1.6898229]
[1732875880136,3.06044838,3573.3,3573.0,0.2]
[1732875880431,2.79859,3573.3,3573.0,0.2]
[1732875880635,0.26185849,3573.2,3573.0,0.2]
[1732875880847,2.79859,3573.3,3573.0,0.2]
[1732875880989,0.26185845,3573.2,3573.0,0.2]
[1732875881219,2.79859,3573.3,3573.0,0.2]
[1732875881418,0.26186358,3573.2,3573.0,0.2]
[1732875881749,2.79859,3573.3,3573.0,0.2]
[1732875882336,2.79863,3573.2,3573.0,0.2]
[1732875883233,2.79839,3573.5,3573.0,0.2]
[1732875883439,2.79853,3573.3,3573.0,0.2]
[1732875884372,2.79853,3573.3,3573.1,0.08616462]
[1732875885769,2.79845,3573.4,3573.1,0.08616462]
[1732875885951,0.26167307,3573.3,3573.1,0.08616462]
[1732875886157,2.79845,3573.4,3573.1,0.08616462]
[1732875886363,0.26167033,3573.3,3573.1,0.08616462]
[1732875886675,2.79858,3573.3,3573.1,0.08616462]
[1732875889957,0.2792,3573.8,3573.3,0.8116]
[1732875890187,0.26163973,3573.7,3573.5,1.4898229]
[1732875890404,0.26163973,3573.6,3573.5,1.4898229]
[1732875890710,3.05992973,3573.6,3573.5,1.4898229]
[1732875891782,0.26163973,3573.6,3573.5,1.4898229]
[1732875891986,0.26163973,3573.6,3573.5,1.5898229]
[1732875892279,0.26168066,3573.6,3573.5,1.5898229]
[1732875893510,0.26168585,3573.6,3573.5,1.5898229]
[1732875894501,0.41869736,3573.9,3573.5,1.5898229]
[1732875894502,2.79807,3573.9,3573.5,1.5898229]
[1732875894708,0.26169701,3573.8,3573.5,1.5898229]
[1732875894903,0.26169701,3573.7,3573.5,1.5898229]
[1732875895066,2.79807,3573.9,3573.5,1.5898229]
[1732875895265,0.26169789,3573.8,3573.5,1.5898229]
[1732875895466,0.26169789,3573.7,3573.5,1.5898229]
[1732875895686,2.79807,3573.9,3573.5,1.5898229]
[1732875895878,0.26169437,3573.8,3573.5,1.5898229]
[1732875896203,0.26169437,3573.7,3573.5,1.5898229]
[1732875896415,2.79807,3573.9,3573.5,1.5898229]
[1732875896597,0.26168583,3573.8,3573.5,1.5898229]
[1732875896793,0.26168583,3573.7,3573.5,1.5898229]
[1732875897001,2.79807,3573.9,3573.5,1.5898229]
[1732875897312,3.05984051,3573.8,3573.5,1.5898229]
[1732875897468,0.26168051,3573.7,3573.5,1.5898229]
[1732875897669,2.79816,3573.8,3573.5,0.1]
[1732875897867,0.26166852,3573.7,3573.5,0.1]
[1732875898116,2.79816,3573.8,3573.5,0.1]
[1732875898316,0.2616692,3573.7,3573.5,0.1]
[1732875898496,2.79816,3573.8,3573.5,0.1]
[1732875898821,0.26166271,3573.7,3573.5,0.1]
[1732875899107,2.79816,3573.8,3573.5,0.1]
[1732875899310,0.26166547,3573.7,3573.6,0.0862247]
[1732875900611,0.26166547,3573.7,3573.6,0.1862247]
[1732875902989,0.41867854,3574.1,3573.7,0.8252]
[1732875903173,3.21624522,3574.6,3574.2,0.9252]
[1732875903512,3.05927485,3574.5,3574.3,0.08404283]
[1732875903666,3.05930485,3574.4,3574.3,0.08404283]
[1732875905150,0.26163485,3574.4,3574.3,0.08404283]
[1732875905982,0.26148864,3574.4,3574.3,0.08404283]
[1732875906490,2.7976,3574.5,3574.3,0.08404283]
[1732875907153,2.79767,3574.4,3574.3,0.08404283]
[1732875907478,3.05916046,3574.4,3574.3,0.08404283]
[1732875909580,2.79767,3574.4,3574.3,0.08404283]
[1732875909796,2.79757,3574.6,3574.3,0.08404283]
[1732875909941,0.26139645,3574.5,3574.3,0.08404283]
[1732875910148,3.05898645,3574.5,3574.3,0.08404283]
[1732875910462,2.79759,3574.5,3574.3,0.08404283]
[1732875912038,2.79767,3574.4,3574.3,0.08404283]
[1732875915381,3.05893548,3574.4,3574.3,0.08404283]
[1732875915584,2.79767,3574.4,3574.3,0.08404283]
[1732875915878,3.05893469,3574.4,3574.3,0.08404283]
[1732875917285,3.38332247,3574.4,3574.3,0.08404283]
[1732875917586,3.92431809,3574.4,3574.3,0.08404283]
[1732875917791,3.92431809,3574.4,3573.6,0.1]
[1732875917792,2.79822,3573.7,3573.6,0.1]
[1732875918284,2.79822,3573.7,3573.6,0.18135151]
[1732875920945,2.79806,3573.9,3573.6,0.18135151]
[1732875921489,2.79822,3573.7,3573.6,0.18135151]
[1732875922044,5.99162148,3576.2,3573.6,0.18135151]
[1732875922045,2.79798,3574.0,3573.8,0.8208]
[1732875922245,2.79798,3574.0,3573.9,0.08110325]
[1732875922472,3.05939966,3574.0,3573.9,0.08110325]
[1732875922978,0.26141966,3574.0,3573.9,0.18110325]
[1732875923186,2.79791,3574.1,3573.9,0.18110325]
[1732875923485,3.05941062,3574.0,3573.9,0.18110325]
[1732875923987,2.79798,3574.0,3573.9,0.18110325]
[1732875924156,3.05941063,3574.0,3573.9,0.18110325]
[1732875925167,3.05941063,3574.0,3573.9,0.08110325]
[1732875925378,3.05941063,3574.0,3573.9,0.18110325]
[1732875925577,0.26143063,3574.0,3573.9,0.18110325]
[1732875925750,0.26143063,3574.0,3573.9,0.28110325]
[1732875925950,3.05934063,3574.1,3573.9,0.28110325]
[1732875926176,2.79791,3574.1,3573.9,0.28110325]
[1732875926574,2.79798,3574.0,3573.9,0.28110325]
[1732875927168,3.05945195,3574.0,3573.9,0.28110325]
[1732875927382,3.05945925,3574.0,3573.9,0.28110325]
[1732875927785,3.05945925,3574.0,3573.9,0.18110325]
[1732875927985,3.05945925,3574.0,3573.9,0.28110325]
[1732875928160,2.79798,3574.0,3573.9,0.28110325]
[1732875930082,3.05949671,3574.0,3573.9,0.28110325]
[1732875930671,3.05949747,3574.0,3573.9,0.28110325]
[1732875931203,3.05950038,3574.0,3573.9,0.28110325]
[1732875933201,0.26152038,3574.0,3573.9,0.28110325]
[1732875933427,3.05944038,3574.1,3573.9,1.13010325]
[1732875933651,2.79779,3574.3,3573.9,1.30719587]
[1732875933896,3.05940525,3574.2,3573.9,1.13010325]
[1732875934095,0.26157525,3574.1,3573.9,1.13010325]
[1732875934398,2.79783,3574.2,3573.9,1.13010325]
[1732875934597,0.26159072,3574.1,3573.9,1.13010325]
[1732875934802,2.79783,3574.2,3573.9,1.13010325]
[1732875935102,0.26158958,3574.1,3573.9,1.13010325]
[1732875935264,2.79783,3574.2,3573.9,1.13010325]
[1732875935459,2.79798,3574.0,3573.9,0.18110325]
[1732875935661,3.05957486,3574.0,3573.9,0.28110325]
[1732875935965,3.05957486,3574.0,3573.9,0.2]
[1732875937616,3.05957573,3574.0,3573.9,0.2]
[1732875938489,3.05957573,3574.0,3573.9,0.28136559]
[1732875938914,3.05957573,3574.0,3573.9,0.1]
[1732875939382,2.79814,3573.8,3573.5,0.1]
[1732875939711,2.79829,3573.6,3573.5,0.1]
[1732875939874,3.3382749,3573.6,3573.5,0.1]
[1732875944321,3.07669,3573.6,3573.5,0.18167538]
[1732875944614,3.33806465,3573.6,3573.5,0.08167538]
[1732875944776,3.33806465,3573.6,3573.5,0.18167538]
[1732875944976,3.33806465,3573.6,3573.5,0.1]
[1732875945176,3.33806465,3573.6,3573.5,0.18167538]
[1732875945670,3.05966465,3573.6,3573.5,0.18167538]
[1732875947692,3.05969525,3573.6,3573.5,0.18167538]
[1732875951489,3.05969525,3573.6,3573.5,0.28167538]
[1732875952624,0.26140525,3573.6,3573.5,0.28167538]
[1732875952793,2.79814,3573.8,3573.7,0.9391]
[1732875952997,3.05952132,3573.8,3573.7,0.9391]
[1732875953196,3.05952132,3573.8,3573.7,1.02066111]
[1732875954395,3.059521,3573.8,3573.7,1.02066111]
[1732875954787,2.79814,3573.8,3573.7,1.02066111]
[1732875955026,3.05952037,3573.8,3573.7,1.02066111]
[1732875957318,0.26138037,3573.8,3573.7,1.02066111]
[1732875957530,3.05945037,3573.9,3573.7,1.02066111]
[1732875957691,0.26138037,3573.8,3573.7,1.02066111]
[1732875957886,3.05956746,3573.8,3573.7,1.02066111]
[1732875959327,3.05956746,3573.8,3573.7,0.08156111]
[1732875959711,2.79829,3573.6,3573.5,0.1]
[1732875960028,2.79829,3573.6,3573.1,1.4898229]
[1732875960029,2.79853,3573.3,3573.2,0.1]
[1732875960248,3.06000458,3573.3,3573.2,0.1]
[1732875961154,2.79866,3573.2,3573.0,0.2]
[1732875961348,2.79869,3573.1,3573.0,0.2]
[1732875963950,2.79869,3573.1,3573.0,0.1]
[1732875964113,3.06023986,3573.1,3573.0,0.1]
[1732875964452,3.06023986,3573.1,3573.0,0.8924]
[1732875964637,3.06023986,3573.1,3572.8,0.2]
[1732875964638,3.64611685,3573.1,3572.8,0.2]
[1732875964842,2.79916,3572.5,3572.4,0.7924]
[1732875965166,2.79916,3572.5,3572.4,0.8924]
[1732875966118,2.799,3572.7,3572.6,0.1]
[1732875966307,3.06049705,3572.7,3572.6,0.1]
[1732875966507,2.799,3572.7,3572.6,0.1]
[1732875967547,2.79916,3572.5,3572.4,0.7924]
[1732875968634,2.79939,3572.2,3572.1,0.1]
[1732875968819,3.06082625,3572.2,3572.1,0.1]
[1732875969025,2.79947,3572.1,3572.0,0.1]
[1732875969220,3.06090625,3572.1,3572.0,0.1]
[1732875969459,3.06090625,3572.1,3572.0,0.18279958]
[1732875970269,2.79947,3572.1,3572.0,0.18279958]
[1732875970667,2.79933,3572.3,3572.0,0.18279958]
[1732875970822,2.79924,3572.4,3572.0,0.1]
[1732875971021,2.79941,3572.2,3572.0,0.1]
[1732875971253,2.79941,3572.2,3572.1,0.0828039]
[1732875971668,2.79924,3572.4,3572.1,0.0828039]
[1732875971976,2.79937,3572.3,3572.1,0.0828039]
[1732875972263,2.79939,3572.2,3572.1,0.0828039]
[1732875975040,3.34925,3572.4,3572.1,0.0828039]
[1732875975375,2.79932,3572.3,3572.1,0.0828039]
[1732875975537,3.34925,3572.4,3572.1,0.0828039]
[1732875976070,2.79932,3572.3,3572.1,0.0828039]
[1732875976431,3.34925,3572.4,3572.1,0.0828039]
[1732875976925,2.79932,3572.3,3572.1,0.0828039]
[1732875978482,2.79939,3572.2,3572.1,0.0828039]
[1732875978641,3.4980526,3572.2,3572.1,0.0828039]
[1732875978845,4.3261526,3572.2,3572.1,0.0828039]
[1732875979067,2.79968,3571.9,3571.7,0.1]
[1732875979590,2.79968,3571.9,3571.8,0.08320868]
[1732875980612,2.79968,3571.9,3571.7,0.1]
[1732875980613,2.7997,3571.8,3571.7,0.1]
[1732875980791,2.7997,3571.9,3571.7,0.1]
[1732875980978,2.7997,3571.9,3571.8,0.1]
[1732875981384,2.7997,3571.9,3571.8,0.18325234]
[1732875981721,2.7997,3571.9,3571.8,0.08325234]
[1732875983493,2.7997,3571.9,3571.7,0.1]
[1732875983694,2.7997,3571.8,3571.7,0.1]
[1732875984672,2.79978,3571.7,3571.6,0.1]
[1732875984872,2.79992,3571.6,3571.3,0.1]
[1732875985098,2.8001,3571.3,3571.2,0.1]
[1732875985404,2.8001,3571.3,3571.0,0.1]
[1732875985405,2.80017,3571.2,3571.0,0.1]
[1732875986187,2.80025,3571.1,3571.0,0.1]
[1732875987621,2.80025,3571.1,3570.8,0.1]
[1732875987622,2.80041,3570.9,3570.8,0.1]
[1732875989421,2.80041,3570.9,3570.8,0.18388484]
[1732875989993,2.80041,3570.9,3570.8,0.08388484]
[1732875990390,2.80041,3570.9,3570.6,0.1]
[1732875990584,2.80041,3570.9,3570.8,0.08388484]
[1732875990896,2.80041,3570.9,3570.8,0.18388484]
[1732875991293,2.80025,3571.1,3570.8,0.18388484]
[1732875992632,0.55,3571.1,3570.8,0.18388484]
[1732875992838,3.35026,3571.1,3570.8,0.18388484]
[1732875993209,0.55,3571.1,3570.8,0.18388484]
[1732875993517,3.35032,3571.1,3570.8,0.18388484]
[1732875995102,2.80033,3571.0,3570.8,0.18388484]
[1732875995814,3.35032,3571.1,3570.9,0.1]
[1732875996142,3.35032,3571.1,3571.0,0.08382026]
[1732875996797,3.35032,3571.1,3570.4,0.1]
[1732875997002,3.35032,3571.1,3571.0,0.08102625]
[1732875997336,3.443178,3571.1,3571.0,0.08102625]
[1732875997544,2.80042,3570.9,3570.4,0.1]
[1732875997747,2.80042,3570.9,3570.5,0.0815367]
[1732875999718,2.80042,3570.9,3570.5,0.8656367]
[1732876000414,2.80025,3571.1,3570.5,0.0815367]
[1732876000610,5.60128,3570.7,3570.5,0.0815367]
[1732876000856,5.60128,3570.7,3570.1,0.791]
[1732876000857,2.8008,3570.4,3570.1,0.791]
[1732876001061,0.7858,3570.7,3569.9,3.35679651]
[1732876001062,4.13637,3570.7,3570.6,0.08146713]
[1732876001364,5.60251,3569.9,3569.6,0.1]
[1732876001514,2.80125,3569.9,3569.6,0.1]
[1732876001827,2.80112,3570.0,3569.7,0.08201864]
[1732876002034,2.80127,3569.8,3569.7,0.08201864]
[1732876002816,2.8015,3569.6,3569.2,0.7853]
[1732876003016,2.80153,3569.5,3569.2,0.7853]
[1732876003238,2.80144,3569.6,3569.2,0.7853]
[1732876003417,2.80152,3569.5,3569.2,0.7853]
[1732876003758,2.80163,3569.4,3569.2,0.7853]
[1732876004450,2.80163,3569.4,3569.3,0.08245478]
[1732876004660,2.80153,3569.5,3569.3,0.08245478]
[1732876004814,2.80153,3569.5,3569.2,0.7853]
[1732876005010,2.80153,3569.5,3569.4,0.08240347]
[1732876005281,2.80153,3569.5,3569.3,0.08245478]
[1732876005451,2.80153,3569.5,3569.4,0.08240347]
[1732876005776,2.8017,3569.3,3568.9,0.8885]
[1732876006196,2.8017,3569.3,3568.9,1.44612977]
[1732876006472,2.8017,3569.3,3568.9,0.8885]
[1732876007171,2.80162,3569.4,3568.9,0.8885]
[1732876010371,2.80167,3569.3,3568.9,0.8885]
[1732876010869,3.64326,3569.6,3568.9,0.8885]
[1732876011176,2.80165,3569.4,3568.9,0.8885]
[1732876011579,2.80165,3569.4,3568.9,3.69047]
[1732876012037,0.7896,3570.9,3570.0,0.1]
[1732876012238,0.7896,3570.9,3569.8,3.59002]
[1732876012239,2.80098,3570.2,3569.8,0.7888]
[1732876014558,2.80081,3570.4,3570.0,0.1]
[1732876014764,0.7896,3570.9,3570.4,2.80074]
[1732876015061,0.26040718,3570.9,3570.5,2.90067]
[1732876015258,2.80042,3570.9,3570.5,0.1]
[1732876015647,2.80051,3570.8,3570.5,0.1]
[1732876016047,2.80057,3570.7,3570.5,0.1]
[1732876016506,0.7939,3571.0,3570.5,0.1]
[1732876016507,2.80041,3570.9,3570.5,0.1]
[1732876016782,2.80026,3571.1,3570.5,2.9007]
[1732876017083,0.55,3571.2,3570.6,2.80064]
[1732876017283,0.26058145,3571.2,3570.8,2.80049]
[1732876017487,5.79999,3571.5,3570.9,0.8428]
[1732876017488,3.06065627,3571.4,3570.9,0.8428]
[1732876017785,3.06070627,3571.3,3570.9,0.8428]
[1732876018000,2.80012,3571.3,3570.9,0.8428]
[1732876018352,2.80012,3571.3,3571.0,0.0819141]
[1732876020374,2.80023,3571.2,3571.0,0.0819141]
[1732876020902,0.55,3571.1,3571.0,0.0819141]
[1732876021401,0.55,3571.4,3571.0,0.0819141]
[1732876021571,0.81059437,3571.4,3570.9,3.64321]
[1732876021774,0.81059437,3571.4,3571.1,0.08184388]
[1732876022107,0.55,3571.5,3571.1,0.1]
[1732876022264,0.55,3571.5,3571.2,0.08181158]
[1732876022265,0.8106055,3571.5,3571.2,0.08181158]
[1732876022458,0.55,3571.6,3571.2,0.08181158]
[1732876022798,0.55,3571.6,3571.1,2.90025]
[1732876022799,0.81060645,3571.6,3571.3,0.08176032]
[1732876022964,0.55,3571.6,3571.3,0.08176032]
[1732876023168,0.55,3571.8,3571.2,2.80015]
[1732876023499,3.61030235,3571.8,3571.4,0.0812462]
[1732876023660,0.55,3571.6,3571.3,0.08129745]
[1732876023861,0.55,3571.6,3571.5,0.08119495]
[1732876024074,0.55,3571.6,3571.4,0.0812462]
[1732876024289,0.55,3571.6,3571.5,0.08119495]
[1732876024573,0.55,3571.6,3571.1,0.1]
[1732876024574,0.55,3571.6,3571.1,2.90024]
[1732876024813,0.55,3571.6,3571.5,0.08119495]
[1732876025014,0.7949,3572.3,3571.6,0.1]
[1732876025312,2.79972,3571.8,3571.5,0.08119495]
[1732876025518,2.79972,3571.8,3571.4,0.1]
[1732876025678,2.79988,3571.6,3571.5,0.08114729]
[1732876026414,3.34988,3571.6,3571.5,0.08114729]
[1732876027822,2.8001,3571.3,3571.1,0.1]
[1732876028224,2.80017,3571.2,3570.8,0.1]
[1732876028533,2.8004,3571.0,3570.7,0.8557]
[1732876030122,2.8004,3571.0,3570.4,0.957]
[1732876030330,2.80057,3570.7,3570.4,0.957]
[1732876031328,0.7957,3571.1,3570.4,0.957]
[1732876031329,2.80064,3570.6,3570.4,0.957]
[1732876031552,2.80057,3570.7,3570.4,0.957]
[1732876034097,2.80057,3570.7,3570.5,0.08165993]
[1732876038548,2.80049,3570.8,3570.5,0.08165993]
[1732876038719,0.55,3571.0,3570.5,2.88236993]
[1732876039342,3.35033,3571.0,3570.5,0.08165993]
[1732876039643,4.045894,3571.0,3570.5,0.08165993]
[1732876039818,1.245564,3571.0,3570.5,2.88235993]
[1732876040143,1.245564,3571.0,3570.5,0.08165993]
[1732876040316,4.30689056,3571.0,3570.5,0.08165993]
[1732876040639,4.045944,3571.0,3570.5,0.08165993]
[1732876040818,3.4850954,3570.9,3570.5,0.08165993]
[1732876041241,2.80053,3570.8,3570.5,0.08165993]
[1732876041849,2.80058,3570.7,3570.5,0.08165993]
[1732876042509,3.4850954,3570.9,3570.5,0.08165993]
[1732876042704,3.06168596,3570.8,3570.5,0.08165993]
[1732876042937,2.80049,3570.8,3570.5,0.08165993]
[1732876043324,2.80064,3570.7,3570.5,0.08165993]
[1732876043528,3.06190098,3570.6,3570.5,0.08165993]
[1732876044082,2.8008,3570.4,3570.3,0.1]
[1732876045228,0.82146632,3570.4,3570.0,0.1]
[1732876045468,0.82146632,3570.4,3569.9,0.8381]
[1732876045469,3.3508,3570.4,3569.9,0.8381]
[1732876045642,2.8012,3569.9,3569.6,0.9381]
[1732876045825,2.80112,3570.0,3569.6,0.9381]
[1732876046647,0.55,3570.1,3569.6,3.73952]
[1732876046877,0.55,3570.1,3569.7,2.80131]
[1732876047162,2.80081,3570.4,3569.6,0.9381]
[1732876047163,3.35097,3570.2,3569.6,0.9381]
[1732876047362,4.07829608,3570.2,3569.6,0.9381]
[1732876047670,0.8602,3570.5,3569.3,0.29259305]
[1732876047671,2.8008,3570.5,3570.1,0.8601]
[1732876047851,3.06198826,3570.4,3570.1,0.8601]
[1732876048037,2.8008,3570.4,3570.1,0.8601]
[1732876049135,2.80074,3570.5,3570.2,0.08207694]
[1732876049332,0.26110932,3570.4,3570.2,0.08207694]
[1732876049578,2.80088,3570.3,3570.0,0.1]
[1732876050478,0.55,3570.6,3570.0,0.1]
[1732876050690,2.80083,3570.4,3570.0,0.1]
[1732876051186,0.55,3570.6,3570.1,2.80102]
[1732876051347,0.26108266,3570.5,3570.1,2.80102]
[1732876051544,0.26108266,3570.5,3570.3,0.8358]
[1732876051751,0.26108266,3570.8,3570.4,2.9008]
[1732876052151,0.26108266,3570.9,3570.6,0.1]
[1732876052847,3.06151266,3570.9,3570.6,0.1]
[1732876053052,0.26108266,3570.8,3570.6,0.1]
[1732876053462,0.26111005,3571.0,3570.6,0.1]
[1732876053855,0.26111005,3571.0,3570.7,0.08180124]
[1732876054276,0.26111005,3570.9,3570.7,0.08180124]
[1732876054451,0.26111005,3571.0,3570.7,0.08180124]
[1732876054651,0.26111005,3570.9,3570.7,0.08180124]
[1732876054953,0.26111005,3571.0,3570.7,0.08180124]
[1732876055153,0.26111005,3570.9,3570.7,0.08180124]
[1732876055349,0.26111005,3571.0,3570.7,0.08180124]
[1732876055554,0.26111005,3570.9,3570.7,0.08180124]
[1732876055763,0.26111005,3571.0,3570.7,0.08180124]
[1732876055969,2.80031,3571.1,3570.7,0.08180124]
[1732876056188,0.26121707,3571.0,3570.7,0.08180124]
[1732876056483,0.26121707,3570.9,3570.8,3.71159]
[1732876056649,0.26121707,3571.1,3570.8,3.71159]
[1732876056845,0.26121707,3571.0,3570.8,3.79339685]
[1732876057076,2.80002,3571.4,3570.8,3.79339685]
[1732876057295,0.26138532,3571.3,3570.8,3.79339685]
[1732876057457,0.26138532,3571.2,3570.8,3.79339685]
[1732876057658,0.26138532,3571.1,3570.8,3.79339685]
[1732876057895,0.26138532,3571.0,3570.8,0.99290685]
[1732876058096,0.26138532,3570.9,3570.8,0.99290685]
[1732876058287,0.26138532,3570.9,3570.8,3.79339685]
[1732876058487,0.26138532,3570.9,3570.8,0.99290685]
[1732876064119,0.26138532,3570.9,3570.8,0.18180685]
[1732876064463,0.26138532,3570.9,3570.8,0.08180685]
[1732876064863,0.68897458,3570.9,3570.6,0.1]
[1732876065063,0.68897458,3570.9,3570.2,0.9227]
[1732876065064,3.06192532,3570.8,3570.2,0.9227]
[1732876065291,3.06200532,3570.7,3570.2,0.9227]
[1732876065502,3.06200532,3570.7,3570.5,0.1]
[1732876065503,0.26138532,3570.6,3570.5,0.1]
[1732876066020,0.26141003,3570.6,3570.5,0.1]
[1732876066334,0.26141305,3570.8,3570.5,0.1]
[1732876066620,0.26141305,3570.7,3570.5,0.1]
[1732876066924,0.2614165,3570.9,3570.5,0.1]
[1732876067130,0.26141516,3570.8,3570.5,0.1]
[1732876067424,0.26141516,3570.7,3570.5,0.1]
[1732876067578,0.26141516,3570.6,3570.5,0.1]
[1732876067781,0.26141516,3570.8,3570.7,0.1]
[1732876067994,0.26141516,3570.8,3570.7,2.90057]
[1732876068300,0.26141516,3571.1,3570.7,0.1]
[1732876068512,0.26141516,3571.0,3570.7,2.90057]
[1732876068738,0.26141516,3570.9,3570.7,2.90057]
[1732876068916,3.21838606,3571.3,3570.7,2.90057]
[1732876069237,3.21838606,3571.3,3570.7,0.1]
[1732876069238,3.06159969,3571.2,3570.7,0.1]
[1732876069387,3.06174969,3571.1,3570.7,0.1]
[1732876069591,0.26141969,3571.0,3570.7,0.1]
[1732876069825,0.26141969,3570.9,3570.7,0.1]
[1732876070036,0.26141969,3571.0,3570.7,0.1]
[1732876070207,0.26141969,3570.9,3570.7,0.1]
[1732876070408,0.26141969,3571.0,3570.7,0.1]
[1732876070604,0.26141969,3570.9,3570.7,0.1]
[1732876070823,2.80023,3571.2,3570.7,0.1]
[1732876071010,0.26140416,3571.1,3570.7,2.90055]
[1732876071199,0.26140416,3571.0,3570.7,2.90055]